fUSD/lending_fUSD_20260224
["ID","MTS","AMOUNT","RATE_DAILY","PERIOD"]
[406518849,1771901443961,-523.65052669,0.0001546,2]
[406518850,1771901443971,-1847.79,0.00015471,2]
[406518851,1771901443981,-859.80605061,0.00015524,2]
[406518852,1771901443992,-500.0,0.00015628,2]
[406518853,1771901444003,-500.0,0.00015628,2]
[406518854,1771901444014,-500.0,0.00015628,2]
[406518855,1771901444024,-500.0,0.00015628,2]
[406518856,1771901444034,-500.0,0.00015628,2]
[406518857,1771901444044,-500.0,0.00015628,2]
[406518858,1771901444055,-500.0,0.00015628,2]
[406518859,1771901444064,-500.0,0.00015628,2]
[406518860,1771901444074,-500.0,0.00015628,2]
[406518861,1771901444085,-500.0,0.00015628,2]
[406518862,1771901444095,-500.0,0.00015628,2]
[406518863,1771901444104,-25282.18877286,0.00015642,2]
[406518864,1771901444321,-823.0,0.00015661,2]
[406518865,1771901444331,-19874.05607728,0.0001571,2]
[406518866,1771901444340,-1301.47235663,0.00015723,2]
[406518867,1771901444349,-3292.0,0.00015748,2]
[406518868,1771901444358,-736.0,0.000158,2]
[406518869,1771901444367,-1000.0,0.00015828,2]
[406518870,1771901444377,-177.32,0.00015828,2]
[406518871,1771901444386,-5160.0,0.0001588,2]
[406518872,1771901444395,-796.51670996,0.0001589,2]
[406518873,1771901444404,-891.61887448,0.00016072,2]
[406518874,1771901444413,-251.0,0.00016073,2]
[406518875,1771901444424,-25282.18877286,0.00016207,2]
[406518876,1771901444433,-19874.05607728,0.00016258,2]
[406518877,1771901444443,-251.0,0.00016262,2]
[406518878,1771901444454,-523.65052669,0.00016273,2]
[406518879,1771901444463,-173.87087054,0.00016298,2]
[406518880,1771901444472,-160.0,0.00016298,2]
[406518881,1771901444482,-251.0,0.00016365,2]
[406518882,1771901444491,-251.0,0.0001642,2]
[406518883,1771901444500,-20000.0,0.00016438,2]
[406518884,1771901444509,-1301.47235663,0.00016449,2]
[406518885,1771901444520,-251.0,0.00016459,2]
[406518886,1771901444529,-251.0,0.00016471,2]
[406518887,1771901444538,-924.60877284,0.0001662,2]
[406518888,1771901444547,-251.0,0.00016639,2]
[406518889,1771901444556,-251.0,0.000167,2]
[406518890,1771901444565,-167.31,0.00016712,2]
[406518891,1771901444574,-25282.18877286,0.00016771,2]
[406518892,1771901444583,-19874.05607728,0.00016805,2]
[406518893,1771901444592,-251.0,0.00016851,2]
[406518894,1771901444601,-248.95527682,0.00016854,2]
[406518895,1771901444610,-251.0,0.00016958,2]
[406518896,1771901444619,-168.0,0.00016986,2]
[406518897,1771901444628,-500.0,0.00016999,2]
[406518898,1771901444637,-500.0,0.00016999,2]
[406518899,1771901444647,-500.0,0.00016999,2]
[406518900,1771901444656,-500.0,0.00016999,2]
[406518901,1771901444665,-500.0,0.00016999,2]
[406518902,1771901444674,-500.0,0.00016999,2]
[406518903,1771901444683,-500.0,0.00016999,2]
[406518904,1771901444692,-500.0,0.00016999,2]
[406518905,1771901444701,-500.0,0.00016999,2]
[406518906,1771901444711,-500.0,0.00016999,2]
[406518907,1771901444725,-500.0,0.00016999,2]
[406518908,1771901444734,-500.0,0.00016999,2]
[406518909,1771901444743,-500.0,0.00016999,2]
[406518910,1771901444752,-500.0,0.00016999,2]
[406518911,1771901444762,-500.0,0.00016999,2]
[406518912,1771901444771,-500.0,0.00016999,2]
[406518913,1771901444780,-500.0,0.00016999,2]
[406518914,1771901444790,-500.0,0.00016999,2]
[406518915,1771901444799,-500.0,0.00016999,2]
[406518916,1771901444808,-500.0,0.00016999,2]
[406518917,1771901444817,-500.0,0.00016999,2]
[406518918,1771901444827,-500.0,0.00016999,2]
[406518919,1771901444836,-510.28250517,0.00016999,2]
[406518920,1771901444846,-500.0,0.00016999,2]
[406518921,1771901444855,-500.0,0.00016999,2]
[406518922,1771901444864,-500.0,0.00016999,2]
[406518923,1771901444873,-500.0,0.00016999,2]
[406518924,1771901444883,-500.0,0.00016999,2]
[406518925,1771901444892,-500.0,0.00016999,2]
[406518926,1771901444901,-500.0,0.00016999,2]
[406518927,1771901444910,-500.0,0.00016999,2]
[406518928,1771901444919,-500.0,0.00016999,2]
[406518929,1771901444928,-783.34429,0.00017,2]
[406518930,1771901444937,-300.0,0.00017,2]
[406518931,1771901444947,-251.0,0.00017009,2]
[406518932,1771901444956,-523.65052669,0.00017087,2]
[406518933,1771901444965,-168.0,0.00017087,2]
[406518934,1771901444983,-251.0,0.00017145,2]
[406518935,1771901444992,-958.81929743,0.00017168,2]
[406518936,1771901445001,-1301.47235663,0.00017174,2]
[406518937,1771901445011,-1152.0,0.00017195,2]
[406518938,1771901445020,-1252.0,0.00017207,2]
[406518939,1771901445030,-251.0,0.00017207,2]
[406518940,1771901445039,-251.0,0.00017234,2]
[406518941,1771901445048,-3559.77,0.00017274,2]
[406518942,1771901445057,-251.0,0.00017276,2]
[406518943,1771901445067,-4609.0,0.00017323,2]
[406518944,1771901445077,-500.0,0.00017331,2]
[406518945,1771901445087,-500.0,0.00017331,2]
[406518946,1771901445097,-500.0,0.00017331,2]
[406518947,1771901445107,-500.0,0.00017331,2]
[406518948,1771901445116,-500.0,0.00017331,2]
[406518949,1771901445125,-25282.18877286,0.00017336,2]
[406518950,1771901445135,-19874.05607728,0.00017353,2]
[406518951,1771901445144,-251.0,0.00017367,2]
[406518952,1771901445153,-251.0,0.00017406,2]
[406518953,1771901445163,-251.0,0.00017409,2]
[406518954,1771901445173,-251.0,0.00017428,2]
[406518955,1771901445182,-350.0,0.0001747,2]
[406518956,1771901445191,-252.0,0.00017506,2]
[406518957,1771901445200,-372.780142,0.00017532,2]
[406518958,1771901445209,-251.0,0.00017543,2]
[406518959,1771901445218,-526.70718554,0.00017599,2]
[406518960,1771901445227,-168.0,0.00017687,2]
[406518961,1771901445238,-4300.0,0.000177,6]
[406518962,1771901445247,-515.0,0.00017715,4]
[406518963,1771901445256,-994.29561144,0.00017716,2]
[406518964,1771901445265,-251.0,0.0001774,2]
[406518965,1771901445275,-4300.0,0.000178,6]
[406518966,1771901445284,-1000.0,0.00017807,2]
[406518967,1771901445293,-505.94666818,0.00017808,2]
[406518968,1771901445303,-505.94666818,0.00017808,2]
[406518969,1771901445312,-505.94666818,0.00017808,2]
[406518970,1771901445321,-505.94666818,0.00017808,2]
[406518971,1771901445330,-505.94666818,0.00017808,2]
[406518972,1771901445339,-505.94666818,0.00017808,2]
[406518973,1771901445348,-505.94666818,0.00017808,2]
[406518974,1771901445357,-505.94666818,0.00017808,2]
[406518975,1771901445366,-505.94666818,0.00017808,2]
[406518976,1771901445375,-505.94666818,0.00017808,2]
[406518977,1771901445384,-505.94666818,0.00017808,2]
[406518978,1771901445394,-505.94666818,0.00017808,2]
[406518979,1771901445403,-505.94666818,0.00017808,2]
[406518980,1771901445413,-505.94666818,0.00017808,2]
[406518981,1771901445423,-505.94666818,0.00017808,2]
[406518982,1771901445432,-505.94666818,0.00017808,2]
[406518983,1771901445442,-505.94666818,0.00017808,2]
[406518984,1771901445452,-505.94666818,0.00017808,2]
[406518985,1771901445461,-505.94666818,0.00017808,2]
[406518986,1771901445470,-3521.01403523,0.00017808,2]
[406518987,1771901445480,-3521.01403523,0.00017808,2]
[406518988,1771901445489,-3521.01403523,0.00017808,2]
[406518989,1771901445499,-3521.01403523,0.00017808,2]
[406518990,1771901445508,-3521.01403523,0.00017808,2]
[406518991,1771901445517,-3521.01403523,0.00017808,2]
[406518992,1771901445526,-3521.01403523,0.00017808,2]
[406518993,1771901445536,-3521.01403523,0.00017808,2]
[406518994,1771901445546,-3521.01403523,0.00017808,2]
[406518995,1771901445557,-800.0,0.00017808,2]
[406518996,1771901445566,-500.0,0.00017899,2]
[406518997,1771901445575,-500.0,0.00017899,2]
[406518998,1771901445584,-500.0,0.00017899,2]
[406518999,1771901445593,-500.0,0.00017899,2]
[406519000,1771901445602,-500.0,0.00017899,2]
[406519001,1771901445611,-4620.22579536,0.000179,3]
[406519002,1771901445620,-523.65052669,0.000179,2]
[406519003,1771901445629,-183.69903614,0.000179,2]
[406519004,1771901445639,-19874.05607728,0.000179,2]
[406519005,1771901445648,-4300.0,0.000179,6]
[406519006,1771901445657,-25282.18877286,0.000179,2]
[406519007,1771901445666,-284.43310462,0.000179,2]
[406519008,1771901445675,-1203.98537398,0.000179,2]
[406519009,1771901445683,-3534.4644998,0.000179,2]
[406519010,1771901445692,-1301.47235663,0.000179,2]
[406519011,1771901445701,-3649.6143905,0.00017938,2]
[406519012,1771901445711,-26992.6359404,0.00017938,2]
[406519013,1771901445723,-500.0,0.00017973,2]
[406519014,1771901445732,-500.20520478,0.00017973,2]
[406519015,1771901445742,-500.0,0.00017973,2]
[406519016,1771901445751,-500.0,0.00017973,2]
[406519017,1771901445759,-500.0,0.00017973,2]
[406519018,1771901445768,-165.36252658,0.00017973,2]
[406519019,1771901445777,-500.0,0.00017973,2]
[406519020,1771901445787,-166.97672521,0.00017973,2]
[406519021,1771901445797,-195.04402718,0.0001799,2]
[406519022,1771901445806,-21937.2020435,0.00017997,2]
[406519023,1771901445815,-500.0,0.00017999,2]
[406519024,1771901445824,-500.0,0.00017999,2]
[406519025,1771901445834,-500.0,0.00017999,2]
[406519026,1771901445843,-500.0,0.00017999,2]
[406519027,1771901445852,-500.0,0.00017999,2]
[406519028,1771901445862,-500.0,0.00017999,2]
[406519029,1771901445871,-500.0,0.00017999,2]
[406519030,1771901445880,-500.0,0.00017999,2]
[406519031,1771901445889,-500.0,0.00017999,2]
[406519032,1771901445899,-500.0,0.00017999,2]
[406519033,1771901445908,-500.0,0.00017999,2]
[406519034,1771901445917,-500.0,0.00017999,2]
[406519035,1771901445927,-500.0,0.00017999,2]
[406519036,1771901445936,-500.0,0.00017999,2]
[406519037,1771901445946,-411.3512341,0.00017999,2]
[406519038,1771901445955,-500.0,0.00017999,2]
[406519039,1771901445965,-500.0,0.00017999,2]
[406519040,1771901445976,-500.0,0.00017999,2]
[406519041,1771901445985,-500.0,0.00017999,2]
[406519042,1771901445994,-500.0,0.00017999,2]
[406519043,1771901446003,-500.0,0.00017999,2]
[406519044,1771901446013,-157.77016902,0.00017999,2]
[406519045,1771901446022,-500.0,0.00017999,2]
[406519046,1771901446031,-500.0,0.00017999,2]
[406519047,1771901446041,-500.0,0.00017999,2]
[406519048,1771901446050,-505.72642802,0.00017999,2]
[406519049,1771901446059,-500.0,0.00017999,2]
[406519050,1771901446068,-500.0,0.00017999,2]
[406519051,1771901446077,-500.0,0.00017999,2]
[406519052,1771901446086,-500.0,0.00017999,2]
[406519053,1771901446096,-500.0,0.00017999,2]
[406519054,1771901446105,-505.3008994,0.00017999,2]
[406519055,1771901446114,-500.0,0.00017999,2]
[406519056,1771901446123,-500.0,0.00017999,2]
[406519057,1771901446132,-500.0,0.00017999,2]
[406519058,1771901446142,-174.85786729,0.00017999,2]
[406519059,1771901446151,-500.0,0.00017999,2]
[406519060,1771901446160,-500.0,0.00017999,2]
[406519061,1771901446170,-500.0,0.00017999,2]
[406519062,1771901446179,-500.0,0.00017999,2]
[406519063,1771901446187,-500.0,0.00017999,2]
[406519064,1771901446196,-500.0,0.00017999,2]
[406519065,1771901446205,-500.0,0.00017999,2]
[406519066,1771901446214,-500.0,0.00017999,2]
[406519067,1771901446223,-500.0,0.00017999,2]
[406519068,1771901446232,-500.0,0.00017999,2]
[406519069,1771901446241,-500.0,0.00017999,2]
[406519070,1771901446250,-500.0,0.00017999,2]
[406519072,1771901446260,-188.98088776,0.00017999,2]
[406519074,1771901446269,-500.0,0.00017999,2]
[406519075,1771901446278,-500.0,0.00017999,2]
[406519076,1771901446287,-500.0,0.00017999,2]
[406519077,1771901446297,-500.0,0.00017999,2]
[406519078,1771901446305,-500.0,0.00017999,2]
[406519079,1771901446315,-500.0,0.00017999,2]
[406519080,1771901446324,-501.77257617,0.00017999,2]
[406519081,1771901446332,-500.0,0.00017999,2]
[406519082,1771901446342,-500.0,0.00017999,2]
[406519083,1771901446351,-500.0,0.00017999,2]
[406519084,1771901446359,-500.0,0.00017999,2]
[406519085,1771901446368,-500.0,0.00017999,2]
[406519086,1771901446378,-500.0,0.00017999,2]
[406519087,1771901446386,-500.0,0.00017999,2]
[406519088,1771901446395,-500.0,0.00017999,2]
[406519089,1771901446404,-500.0,0.00017999,2]
[406519090,1771901446414,-500.0,0.00017999,2]
[406519091,1771901446423,-500.0,0.00017999,2]
[406519092,1771901446432,-500.0,0.00017999,2]
[406519093,1771901446441,-500.0,0.00017999,2]
[406519094,1771901446450,-155.12855329,0.00017999,2]
[406519095,1771901446459,-500.0,0.00017999,2]
[406519096,1771901446468,-500.0,0.00017999,2]
[406519097,1771901446477,-500.0,0.00017999,2]
[406519098,1771901446486,-500.0,0.00017999,2]
[406519099,1771901446495,-500.0,0.00017999,2]
[406519100,1771901446503,-500.0,0.00017999,2]
[406519101,1771901446513,-500.0,0.00017999,2]
[406519102,1771901446521,-500.0,0.00017999,2]
[406519103,1771901446530,-500.0,0.00017999,2]
[406519104,1771901446540,-500.0,0.00017999,2]
[406519105,1771901446549,-500.0,0.00017999,2]
[406519106,1771901446558,-500.0,0.00017999,2]
[406519107,1771901446567,-500.0,0.00017999,2]
[406519108,1771901446620,-594.51155404,0.00017999,2]
[406519109,1771901446630,-500.0,0.00017999,2]
[406519110,1771901446639,-500.0,0.00017999,2]
[406519111,1771901446648,-500.0,0.00017999,2]
[406519112,1771901446656,-500.0,0.00017999,2]
[406519113,1771901446665,-500.0,0.00017999,2]
[406519114,1771901446674,-500.0,0.00017999,2]
[406519115,1771901446683,-309.11765045,0.00017999,2]
[406519116,1771901446692,-666.0,0.00017999,2]
[406519117,1771901446700,-767846.53659263,0.00018,2]
[406519118,1771901446710,-1013491.36815674,0.00018,2]
[406519119,1771901446969,-151.0,0.00014634,2]
[406519120,1771901446979,-5555.705,0.00018,2]
[406519121,1771901446989,-8012.14879119,0.00018,2]
[406519122,1771901447007,-657.26475687,0.00018,2]
[406519123,1771901447023,-761.80535695,0.00018,2]
[406519124,1771901447039,-6506.00362237,0.00018,2]
[406519125,1771901447640,-1975.5,0.00018,2]
[406519126,1771901447651,-1064.8408751,0.00018,2]
[406519127,1771901447662,-4973.11165622,0.00018,2]
[406519129,1771901535452,335.90401971,0.00013,7]
[406519130,1771901536115,500.0,0.000108,2]
[406519131,1771901536793,500.0,0.000108,2]
[406519132,1771901537783,500.0,0.000108,2]
[406519133,1771901537992,500.0,0.000108,2]
[406519134,1771901538522,500.0,0.000108,2]
[406519135,1771901539006,500.0,0.000108,2]
[406519136,1771901539462,500.0,0.000108,2]
[406519137,1771901540598,500.0,0.000108,2]
[406519138,1771901543138,500.0,0.000108,2]
[406519139,1771901543187,500.0,0.000108,2]
[406519140,1771901543694,653.71723476,0.000108,2]
[406519141,1771901543738,500.0,0.000108,2]
[406519142,1771901544188,500.0,0.000108,2]
[406519143,1771901546732,500.0,0.000108,2]
[406519144,1771901551188,500.0,0.000108,2]
[406519145,1771901555243,500.0,0.000108,2]
[406519245,1771901836248,500.0,0.000108,2]
[406519247,1771901837466,500.0,0.000108,2]
[406519248,1771901849716,800.0,0.000108,2]
[406519249,1771901850128,-1200.0,0.00012819,2]
[406519250,1771901850150,-27241.0,0.0001282,2]
[406519253,1771901864946,831.98,0.00011006,2]
[406519254,1771901865168,831.98,0.00011254,2]
[406519255,1771901865360,831.98,0.00011502,2]
[406519256,1771901865599,831.98,0.0001175,2]
[406519258,1771901978802,160.0,0.00011,2]
[406519302,1771902136707,500.0,0.000108,2]
[406519303,1771902143392,500.0,0.000108,2]
[406519326,1771902465663,-166.66,0.00011837,2]
[406519343,1771902631887,-810.59415021,0.00011999,2]
[406519344,1771902631898,-21.38584979,0.00011999,2]
[406519345,1771902631907,-250.0,0.00011999,2]
[406519346,1771902631916,-248.0,0.00011999,2]
[406519347,1771902631925,-166.66,0.00012087,2]
[406519348,1771902631935,-119.6985438,0.00012133,2]
[406519349,1771902631946,-130.3014562,0.00012133,2]
[406519350,1771902631955,-831.98,0.00012247,2]
[406519351,1771902631964,-166.66,0.00012336,2]
[406519352,1771902631973,-831.98,0.00012495,2]
[406519353,1771902631982,-2871.33,0.00012509,2]
[406519354,1771902631991,-166.66,0.00012585,2]
[406519355,1771902632000,-831.98,0.00012743,2]
[406519356,1771902632009,-417.0,0.000128,2]
[406519357,1771902632018,-479.38363658,0.00012818,2]
[406519358,1771902632029,-720.61636342,0.00012818,2]
[406519359,1771902632038,-5634.3991,0.0001282,2]
[406519360,1771902632047,-166.66,0.00012834,2]
[406519361,1771902632057,-616.27865682,0.00012839,2]
[406519362,1771902632068,-1164.0,0.00012908,2]
[406519363,1771902632077,-269.0,0.00012934,2]
[406519364,1771902632086,-189.62206976,0.00012973,2]
[406519365,1771902632095,-562.10727745,0.00012973,2]
[406519366,1771902632107,-336.37939,0.00012973,2]
[406519367,1771902632118,-500.0,0.00012973,2]
[406519368,1771902632128,-1178.89501743,0.00012973,2]
[406519369,1771902632139,-1882.74716752,0.00012973,2]
[406519370,1771902632150,-1623.11679656,0.00012973,2]
[406519371,1771902632161,-8264.80345583,0.00012973,2]
[406519375,1771902637414,-4128.57744195,0.00012973,2]
[406519377,1771902637424,-1095.92387044,0.00012973,2]
[406519380,1771902637433,-831.98,0.00012992,2]
[406519381,1771902637442,-195.04402718,0.0001301,2]
[406519383,1771902637452,-150.0,0.00013018,2]
[406519384,1771902637462,-1008.27281453,0.00013019,2]
[406519385,1771902637471,-259.96169612,0.00013019,2]
[406519386,1771902637481,-208.03686315,0.00013019,2]
[406519387,1771902637490,-1008.27281453,0.00013019,2]
[406519388,1771902637500,-1008.27281453,0.00013019,2]
[406519389,1771902637509,-1008.27281453,0.00013019,2]
[406519390,1771902637518,-1008.27281453,0.00013019,2]
[406519393,1771902637527,-1008.27281453,0.00013019,2]
[406519395,1771902637536,-1008.27281453,0.00013019,2]
[406519397,1771902637545,-1008.27281453,0.00013019,2]
[406519400,1771902637555,-1008.27281453,0.00013019,2]
[406519402,1771902637563,-1008.27281453,0.00013019,2]
[406519404,1771902637574,-1008.27281453,0.00013019,2]
[406519405,1771902637583,-1008.27281453,0.00013019,2]
[406519406,1771902637592,-1008.27281453,0.00013019,2]
[406519407,1771902637601,-1008.27281453,0.00013019,2]
[406519408,1771902637610,-1008.27281453,0.00013019,2]
[406519409,1771902637619,-1008.27281453,0.00013019,2]
[406519410,1771902637628,-1008.27281453,0.00013019,2]
[406519411,1771902637637,-1008.27281453,0.00013019,2]
[406519412,1771902637647,-1008.27281453,0.00013019,2]
[406519413,1771902637656,-1008.27281453,0.00013019,2]
[406519414,1771902637665,-1008.27281453,0.00013019,2]
[406519415,1771902637674,-1008.27281453,0.00013019,2]
[406519416,1771902637684,-1008.27281453,0.00013019,2]
[406519417,1771902637693,-1008.27281453,0.00013019,2]
[406519418,1771902637705,-1008.27281453,0.00013019,2]
[406519419,1771902637714,-1008.27281453,0.00013019,2]
[406519424,1771902637931,-1008.27281453,0.00013019,2]
[406519426,1771902637944,-1008.27281453,0.00013019,2]
[406519428,1771902637954,-1008.27281453,0.00013019,2]
[406519431,1771902637963,-1008.27281453,0.00013019,2]
[406519434,1771902637973,-1008.27281453,0.00013019,2]
[406519436,1771902637983,-1008.27281453,0.00013019,2]
[406519438,1771902637992,-1008.27281453,0.00013019,2]
[406519440,1771902638002,-1008.27281453,0.00013019,2]
[406519442,1771902638011,-1008.27281453,0.00013019,2]
[406519444,1771902638021,-1008.27281453,0.00013019,2]
[406519446,1771902638031,-1008.27281453,0.00013019,2]
[406519448,1771902638040,-1008.27281453,0.00013019,2]
[406519450,1771902638050,-1008.27281453,0.00013019,2]
[406519452,1771902638059,-1008.27281453,0.00013019,2]
[406519454,1771902638072,-1008.27281453,0.00013019,2]
[406519456,1771902638082,-1008.27281453,0.00013019,2]
[406519458,1771902638091,-1008.27281453,0.00013019,2]
[406519460,1771902638102,-1008.27281453,0.00013019,2]
[406519462,1771902638112,-1008.27281453,0.00013019,2]
[406519464,1771902638121,-1008.27281453,0.00013019,2]
[406519466,1771902638131,-1008.27281453,0.00013019,2]
[406519468,1771902638141,-1008.27281453,0.00013019,2]
[406519470,1771902638150,-1008.27281453,0.00013019,2]
[406519472,1771902638160,-1008.27281453,0.00013019,2]
[406519474,1771902638170,-1008.27281453,0.00013019,2]
[406519476,1771902638179,-1008.27281453,0.00013019,2]
[406519478,1771902638188,-1008.27281453,0.00013019,2]
[406519480,1771902638198,-1008.27281453,0.00013019,2]
[406519482,1771902638207,-1016.27252691,0.00013019,2]
[406519484,1771902638217,-1016.27252691,0.00013019,2]
[406519486,1771902638227,-1016.27252691,0.00013019,2]
[406519488,1771902638238,-1016.27252691,0.00013019,2]
[406519490,1771902638247,-1016.27252691,0.00013019,2]
[406519492,1771902638256,-1016.27252691,0.00013019,2]
[406519494,1771902638265,-1016.27252691,0.00013019,2]
[406519496,1771902638274,-1016.27252691,0.00013019,2]
[406519498,1771902638284,-1016.27252691,0.00013019,2]
[406519500,1771902638293,-1016.27252691,0.00013019,2]
[406519502,1771902638302,-1016.27252691,0.00013019,2]
[406519504,1771902638311,-1016.27252691,0.00013019,2]
[406519506,1771902638320,-1016.27252691,0.00013019,2]
[406519508,1771902638329,-1016.27252691,0.00013019,2]
[406519510,1771902638339,-1016.27252691,0.00013019,2]
[406519512,1771902638350,-1016.27252691,0.00013019,2]
[406519514,1771902638359,-1016.27252691,0.00013019,2]
[406519516,1771902638368,-1016.27252691,0.00013019,2]
[406519518,1771902638377,-1016.27252691,0.00013019,2]
[406519520,1771902638387,-1016.27252691,0.00013019,2]
[406519522,1771902638396,-1016.27252691,0.00013019,2]
[406519524,1771902638404,-1016.27252691,0.00013019,2]
[406519526,1771902638414,-1016.27252691,0.00013019,2]
[406519528,1771902638423,-1016.27252691,0.00013019,2]
[406519530,1771902638431,-1016.27252691,0.00013019,2]
[406519531,1771902638440,-1016.27252691,0.00013019,2]
[406519534,1771902638450,-1016.27252691,0.00013019,2]
[406519536,1771902638460,-1016.27252691,0.00013019,2]
[406519538,1771902638469,-1182.30519065,0.00013019,2]
[406519540,1771902638479,-1182.30519065,0.00013019,2]
[406519542,1771902638488,-1182.30519065,0.00013019,2]
[406519543,1771902638497,-1182.30519065,0.00013019,2]
[406519545,1771902638506,-1182.30519065,0.00013019,2]
[406519547,1771902638515,-1182.30519065,0.00013019,2]
[406519549,1771902638524,-1182.30519065,0.00013019,2]
[406519551,1771902638533,-1182.30519065,0.00013019,2]
[406519553,1771902638543,-401533.67615329,0.0001302,2]
[406519556,1771902638555,-7211.0,0.0001302,2]
[406519558,1771902638566,-3894.1177145,0.0001302,2]
[406519560,1771902638577,-1230.22,0.0001302,2]
[406519562,1771902638589,-1982.81002407,0.0001302,2]
[406519564,1771902638600,-487.0242411,0.0001302,2]
[406519568,1771902638624,-542.67999544,0.0001302,2]
[406519570,1771902638635,-1298.58005086,0.0001302,2]
[406519572,1771902638646,-36331.28395714,0.0001302,2]
[406519574,1771902638657,-621.77,0.0001302,2]
[406519576,1771902638668,-432.46183533,0.0001302,2]
[406519685,1771902639797,-621.01,0.0001302,2]
[406519688,1771902639808,-35161.38616118,0.0001302,2]
[406519710,1771902640011,-44835.42323369,0.0001302,2]
[406519712,1771902640022,-338.23836,0.0001302,2]
[406519718,1771902640072,-2502640.94201466,0.0001302,2]
[406520006,1771902642764,-280948.5595703,0.0001302,2]
[406520009,1771902642777,-92170.97796384,0.0001302,2]
[406520056,1771902645488,-614.52464211,0.0001302,2]
[406520059,1771902646069,-2318.403545,0.0001302,2]
[406520060,1771902646081,-333.29361586,0.0001302,2]
[406520075,1771902931923,5531.0,0.000124,5]
[406520076,1771903351982,500.0,0.000108,2]
[406520077,1771903352514,500.0,0.000108,2]
[406520078,1771903352969,500.0,0.000108,2]
[406520079,1771903353509,500.0,0.000108,2]
[406520080,1771903353992,784.19019137,0.000108,2]
[406520081,1771903512929,176.95,9.494e-05,2]
[406520082,1771903516125,1200.208243,0.0001194,2]
[406520088,1771903620614,1100.0,0.000125,4]
[406520089,1771903636636,501.06724534,0.000108,2]
[406520090,1771903636664,500.98925879,0.000108,2]
[406520091,1771903637071,500.0,0.000108,2]
[406520092,1771903637574,500.0,0.000108,2]
[406520093,1771903637953,500.0,0.000108,2]
[406520094,1771903638459,500.0,0.000108,2]
[406520095,1771903638946,500.0,0.000108,2]
[406520096,1771903639012,500.0,0.000108,2]
[406520097,1771903639420,500.0,0.000108,2]
[406520098,1771903639570,500.0,0.000108,2]
[406520099,1771903639899,678.23657423,0.000108,2]
[406520100,1771903640072,500.0,0.000108,2]
[406520101,1771903640550,500.0,0.000108,2]
[406520102,1771903641021,500.0,0.000108,2]
[406520103,1771903641485,500.0,0.000108,2]
[406520104,1771903642184,600.28022052,0.000108,2]
[406520105,1771903642637,500.0,0.000108,2]
[406520106,1771903643139,900.0,0.000108,2]
[406520107,1771903646251,500.0,0.000108,2]
[406520108,1771903646727,500.0,0.000108,2]
[406520109,1771903647198,751.95169886,0.000108,2]
[406520111,1771903649569,904.00212899,0.000108,2]
[406520116,1771903804390,150.0,0.00012098,14]
[406520123,1771903831656,-279.9,0.00012,2]
[406520126,1771903831666,-248.0,0.00012,2]
[406520129,1771903831676,-250.0,0.00012023,2]
[406520130,1771903831685,-300.0,0.00012046,2]
[406520132,1771903831694,-150.0,0.00012046,2]
[406520134,1771903831703,-203.76,0.0001206,2]
[406520135,1771903831713,-500.0,0.00012092,2]
[406520137,1771903831722,-382.72048887,0.00012098,2]
[406520139,1771903831731,-4352.77,0.00012166,2]
[406520141,1771903831740,-1200.0,0.00012188,2]
[406520142,1771903831749,-300.0,0.00012188,2]
[406520144,1771903831759,-1200.0,0.00012188,2]
[406520146,1771903831768,-300.0,0.00012188,2]
[406520147,1771903831777,-3901.12,0.00012191,2]